bitfinex/quotes_SOLUSD_20250718
["timestamp","ask_amount","ask_price","bid_price","bid_amount"]
[1752863688277,29.92,178.47,178.46,1e-08]
[1752863688477,37.02828542,178.47,178.46,1e-08]
[1752863688849,29.92,178.47,178.46,1e-08]
[1752863689152,29.92,178.47,178.46,0.66000001]
[1752863689960,29.92,178.48,178.46,0.66000001]
[1752863691981,29.92,178.48,178.46,1e-08]
[1752863692194,89.7,178.49,178.47,0.66]
[1752863692358,126.68828542,178.49,178.46,1e-08]
[1752863692862,132.29085904,178.49,178.46,0.66000001]
[1752863693077,126.68828542,178.49,178.46,1e-08]
[1752863693285,119.58,178.49,178.46,1e-08]
[1752863693468,119.58,178.49,178.46,0.66000001]
[1752863693656,119.58,178.49,178.48,7.10828542]
[1752863693887,89.7,178.49,178.48,7.76828542]
[1752863694462,89.7,178.49,178.48,0.66]
[1752863695274,89.7,178.49,178.46,0.66000001]
[1752863695462,89.7,178.49,178.46,7.76828543]
[1752863695668,119.54,178.49,178.46,7.76828543]
[1752863696087,119.54,178.49,178.46,7.10828543]
[1752863696289,119.54,178.49,178.47,7.76828542]
[1752863696507,119.54,178.49,178.47,0.66]
[1752863696665,119.54,178.49,178.46,7.10828543]
[1752863696989,120.22,178.49,178.46,1e-08]
[1752863697167,119.54,178.49,178.46,7.10828543]
[1752863697366,119.54,178.49,178.46,7.76828543]
[1752863697589,89.7,178.49,178.46,7.10828543]
[1752863697889,119.54,178.49,178.46,7.76828543]
[1752863698095,119.54,178.49,178.46,0.66000001]
[1752863698267,119.54,178.49,178.46,7.76828543]
[1752863698465,119.6,178.49,178.46,7.76828543]
[1752863698767,125.88259449,178.49,178.46,1e-08]
[1752863699073,125.88259449,178.49,178.46,7.10828543]
[1752863699998,120.28,178.49,178.46,7.10828543]
[1752863700167,90.44,178.49,178.46,7.10828543]
[1752863700494,132.3109596,178.49,178.46,1e-08]
[1752863700693,7.10828542,178.47,178.46,1e-08]
[1752863700980,36.92828542,178.47,178.46,1e-08]
[1752863701184,37.60828542,178.47,178.46,1e-08]
[1752863702288,50.31975344,178.47,178.46,1e-08]
[1752863702471,93.10443741,178.47,178.46,1e-08]
[1752863702676,67.10443741,178.47,178.46,1e-08]
[1752863703678,26.0,178.44,178.43,0.2]
[1752863703869,62.94828542,178.44,178.43,0.2]
[1752863704071,63.62828542,178.44,178.43,0.2]
[1752863704408,69.23241005,178.44,178.43,0.2]
[1752863705908,68.55241005,178.44,178.43,0.2]
[1752863706268,36.94828542,178.44,178.43,0.2]
[1752863706681,29.8,178.45,178.43,7.96828542]
[1752863706972,29.8,178.46,178.44,7.76828542]
[1752863707286,119.52,178.48,178.45,7.76828542]
[1752863707495,119.52,178.48,178.45,0.66]
[1752863707669,119.52,178.48,178.44,7.10828542]
[1752863708302,0.68,178.47,178.43,0.2]
[1752863708485,37.60828542,178.46,178.43,0.2]
[1752863709030,42.53178656,178.46,178.43,0.2]
[1752863709226,89.7,178.48,178.44,0.66]
[1752863709507,29.78,178.47,178.43,0.2]
[1752863709678,29.78,178.47,178.44,7.10828542]
[1752863709876,29.78,178.47,178.43,0.86]
[1752863710129,36.88828542,178.47,178.43,0.2]
[1752863710415,0.68,178.46,178.43,0.2]
[1752863711083,42.49150337,178.47,178.43,7.96828542]
[1752863711498,43.17150337,178.47,178.43,7.96828542]
[1752863711706,43.17150337,178.47,178.43,0.2]
[1752863712008,0.68,178.46,178.43,0.2]
[1752863712518,42.49150337,178.47,178.43,0.2]
[1752863712733,43.17150337,178.47,178.43,0.2]
[1752863713419,42.49150337,178.47,178.43,0.2]
[1752863713720,29.76,178.47,178.45,7.10828542]
[1752863713894,89.7,178.48,178.46,0.66]
[1752863714084,89.7,178.48,178.46,7.76828542]
[1752863715622,43.21085227,178.49,178.45,7.10828542]
[1752863716185,43.21085227,178.49,178.44,12.71235926]
[1752863716621,43.21085227,178.49,178.44,7.82828542]
[1752863717050,43.21085227,178.49,178.44,0.72]
[1752863717226,43.21085227,178.49,178.44,7.82828542]
[1752863717547,13.45085227,178.49,178.44,7.82828542]
[1752863717705,13.45085227,178.49,178.43,5.80438483]
[1752863717706,0.69,178.48,178.43,5.80438483]
[1752863717909,0.69,178.48,178.44,7.10828542]
[1752863718256,0.69,178.48,178.44,7.82828542]
[1752863719341,29.8,178.49,178.45,0.72]
[1752863719506,29.8,178.49,178.45,7.82828542]
[1752863719713,29.8,178.49,178.45,7.10828542]
[1752863719911,29.8,178.49,178.46,0.72]
[1752863720445,29.8,178.49,178.44,5.60399955]
[1752863720446,0.06,178.49,178.47,7.82828542]
[1752863720652,0.06,178.49,178.48,0.72]
[1752863720810,0.06,178.49,178.47,7.82828542]
[1752863724009,0.06,178.49,178.48,7.82828542]
[1752863725019,0.06,178.49,178.48,7.10828542]
[1752863725339,0.06,178.49,178.45,6.32381059]
[1752863725543,0.06,178.49,178.46,7.10828542]
[1752863726020,0.06,178.49,178.47,7.10828542]
[1752863726224,0.06,178.49,178.46,0.72]
[1752863726424,0.06,178.49,178.47,7.10828542]
[1752863726637,0.06,178.49,178.48,7.82828542]
[1752863726812,0.06,178.49,178.46,6.32340587]
[1752863727021,0.06,178.49,178.47,7.82828542]
[1752863727735,0.06,178.49,178.48,7.82828542]
[1752863728824,0.06,178.49,178.48,7.10828542]
[1752863729224,0.06,178.49,178.47,7.10828542]
[1752863729520,0.06,178.49,178.47,7.82828542]
[1752863731138,0.06,178.49,178.48,7.10828542]
[1752863731350,0.06,178.49,178.48,7.82828542]
[1752863731862,0.06,178.49,178.48,7.10828542]
[1752863732546,0.06,178.49,178.48,7.82828542]
[1752863733234,0.06,178.49,178.48,7.10828542]
[1752863733618,0.75,178.49,178.44,6.35405571]
[1752863733852,0.69,178.48,178.44,7.13828542]
[1752863734055,0.69,178.48,178.44,7.85828542]
[1752863734645,7.16828542,178.49,178.44,12.74240421]
[1752863734824,0.06,178.49,178.46,7.10828542]
[1752863735145,0.06,178.49,178.46,7.82828542]
[1752863735852,0.06,178.49,178.48,7.10828542]
[1752863736220,0.06,178.49,178.48,7.82828542]
[1752863736740,0.06,178.49,178.48,6.32286866]
[1752863736934,0.06,178.49,178.48,13.43115408]
[1752863737336,0.06,178.49,178.48,7.82828542]
[1752863738526,0.06,178.49,178.48,7.10828542]
[1752863738726,0.06,178.49,178.47,5.60311992]
[1752863738930,0.06,178.49,178.48,7.10828542]
[1752863739342,0.06,178.49,178.46,26.0]
[1752863739542,0.06,178.49,178.45,7.10828542]
[1752863739543,0.75,178.49,178.45,7.10828542]
[1752863739750,0.06,178.49,178.45,7.10828542]
[1752863739951,0.06,178.49,178.46,7.82828542]
[1752863740646,0.06,178.49,178.47,7.82828542]
[1752863741452,0.06,178.49,178.48,7.82828542]
[1752863741949,0.06,178.49,178.48,24.61296939]
[1752863743051,0.06,178.49,178.48,30.21583805]
[1752863745254,0.06,178.49,178.48,30.77612491]
[1752863745435,0.06,178.51,178.49,16.78468397]
[1752863745755,0.06,178.51,178.5,63.2485095]
[1752863745947,0.06,178.51,178.5,63.9085095]
[1752863746146,1e-08,178.51,178.5,54.69319347]
[1752863746348,0.06,178.53,178.51,16.78468397]
[1752863746541,0.06,178.53,178.52,7.10828542]
[1752863746745,0.06,178.53,178.52,54.11296939]
[1752863747058,0.06,178.53,178.52,59.71458265]
[1752863754170,1e-08,178.53,178.52,59.71458265]
[1752863754659,0.06,178.57,178.52,73.71861581]
[1752863754965,0.06,178.57,178.56,7.10828542]
[1752863755269,0.73,178.57,178.56,29.5]
[1752863755644,0.06,178.57,178.56,29.5]
[1752863756366,0.73,178.57,178.56,29.5]
[1752863756674,0.73,178.57,178.56,35.10035842]
[1752863756846,0.06,178.57,178.56,35.10035842]
[1752863757048,0.06,178.57,178.56,42.20864384]
[1752863757571,0.06,178.57,178.56,42.86864384]
[1752863759777,0.73,178.57,178.55,29.48]
[1752863759981,7.10828542,178.56,178.52,26.0]
[1752863760170,0.67,178.55,178.53,29.48]
[1752863760365,7.77828542,178.55,178.53,29.48]
[1752863760555,0.67,178.54,178.52,29.48]
[1752863760763,0.67,178.53,178.52,29.48]
[1752863761150,14.45318542,178.57,178.52,36.58828542]
[1752863761677,0.67,178.56,178.52,36.58828542]
[1752863761880,0.67,178.55,178.52,36.58828542]
[1752863762258,0.67,178.54,178.52,36.58828542]
[1752863762877,7.3449,178.57,178.53,7.10828542]
[1752863763062,7.3449,178.57,178.54,29.48]
[1752863763264,7.3449,178.57,178.54,36.58828542]
[1752863763586,0.06,178.57,178.54,36.58828542]
[1752863763766,0.73,178.57,178.54,36.58828542]
[1752863764469,0.06,178.57,178.54,42.18910374]
[1752863764785,0.06,178.57,178.55,7.10828542]
[1752863764963,0.06,178.57,178.56,36.58828542]
[1752863766489,0.06,178.57,178.56,42.18864384]
[1752863766872,0.06,178.57,178.56,42.84864384]
[1752863767274,92.0266,178.63,178.56,42.84864384]
[1752863767275,0.2,178.65,178.6,16.78468397]
[1752863767588,0.67,178.64,178.61,29.46]
[1752863767806,0.67,178.63,178.59,26.0]
[1752863767964,0.67,178.63,178.61,7.10828542]
[1752863768298,0.2,178.65,178.62,36.56828542]
[1752863768465,0.87,178.65,178.62,36.56828542]
[1752863768786,0.67,178.64,178.62,36.56828542]
[1752863769204,0.2,178.65,178.63,7.10828542]
[1752863769513,0.67,178.64,178.62,29.46]
[1752863769802,7.10828542,178.63,178.6,29.58]
[1752863770094,0.67,178.62,178.6,29.58]
[1752863770515,0.67,178.62,178.6,36.68828542]
[1752863771612,0.67,178.62,178.6,29.58]
[1752863771811,0.67,178.62,178.6,36.68828542]
[1752863773676,0.67,178.62,178.6,29.58]
[1752863773882,89.7,178.64,178.61,7.10828542]
[1752863774203,90.37,178.64,178.61,7.10828542]
[1752863774610,90.37,178.64,178.6,35.17905659]
[1752863774801,90.37,178.64,178.61,36.76828542]
[1752863775189,90.37,178.64,178.63,7.10828542]
[1752863775190,89.7,178.64,178.63,7.10828542]
[1752863775512,0.2,178.65,178.63,36.74828542]
[1752863775678,0.2,178.65,178.64,7.10828542]
[1752863776079,0.89,178.65,178.63,29.64]
[1752863776281,0.69,178.64,178.63,29.64]
[1752863776908,0.69,178.64,178.63,36.74828542]
[1752863777112,0.69,178.64,178.63,29.64]
[1752863778111,7.79828542,178.64,178.59,5.59934742]
[1752863778300,0.69,178.63,178.61,29.64]
[1752863778493,0.69,178.62,178.61,29.64]
[1752863778920,89.7,178.64,178.61,29.64]
[1752863779226,0.69,178.63,178.61,29.64]
[1752863780518,0.69,178.62,178.59,12.70762867]
[1752863780703,0.69,178.61,178.6,29.62]
[1752863782823,7.79828542,178.61,178.57,7.10828542]
[1752863783119,7.10828542,178.59,178.55,5.60067208]
[1752863783420,0.69,178.59,178.56,36.70828542]
[1752863784510,0.69,178.59,178.56,42.30860942]
[1752863784826,89.7,178.63,178.57,7.10828542]
[1752863785016,0.69,178.62,178.59,7.10828542]
[1752863785213,7.79828542,178.62,178.57,7.10828542]
[1752863785529,0.69,178.61,178.58,36.76828542]
[1752863785827,0.69,178.63,178.59,7.10828542]
[1752863786029,7.79828542,178.63,178.58,36.76828542]
[1752863786328,0.69,178.62,178.59,7.10828542]
[1752863786828,0.69,178.61,178.58,36.76828542]
[1752863787040,0.69,178.6,178.58,36.76828542]
[1752863787243,0.69,178.59,178.58,29.66]
[1752863788823,0.69,178.61,178.58,36.76828542]
[1752863790828,0.69,178.62,178.6,36.72828542]
[1752863791037,0.69,178.61,178.6,29.62]
[1752863791427,0.69,178.61,178.58,29.6]
[1752863791655,7.10828542,178.62,178.58,29.6]
[1752863791848,0.69,178.61,178.58,36.70828542]
[1752863792235,0.69,178.6,178.58,36.70828542]
[1752863792443,0.69,178.6,178.58,29.6]
[1752863792642,0.69,178.6,178.58,36.70828542]
[1752863793172,0.69,178.6,178.58,29.6]
[1752863793972,0.69,178.6,178.58,35.19973023]
[1752863794176,0.69,178.62,178.58,42.30801565]
[1752863794471,89.7,178.63,178.59,7.10828542]
[1752863794649,89.7,178.63,178.6,29.56]
[1752863794843,89.7,178.63,178.6,36.66828542]
[1752863795042,0.69,178.62,178.6,29.56]
[1752863795268,0.69,178.61,178.6,29.56]
[1752863796374,0.69,178.61,178.58,36.68828542]
[1752863796887,7.79828542,178.6,178.57,29.59]
[1752863797060,0.69,178.59,178.57,29.59]
[1752863797463,0.69,178.59,178.57,36.69828542]
[1752863797888,13.39684703,178.62,178.57,37.40828542]
[1752863798296,13.39684703,178.62,178.59,7.10828542]
[1752863798297,0.69,178.62,178.59,7.10828542]
[1752863798591,89.7,178.63,178.59,7.10828542]
[1752863798592,89.7,178.63,178.6,7.10828542]
[1752863799893,90.39,178.63,178.6,7.10828542]
[1752863800264,0.69,178.62,178.6,7.10828542]
[1752863800708,0.69,178.61,178.59,36.68828542]
[1752863800877,102.40652647,178.63,178.59,29.58]
[1752863801072,0.69,178.6,178.59,29.58]
[1752863801288,0.69,178.6,178.57,0.03]
[1752863801595,0.69,178.59,178.57,29.57]
[1752863801998,5.59848615,178.62,178.57,29.57]
[1752863801999,0.69,178.61,178.57,36.67828542]
[1752863802502,0.69,178.6,178.57,36.67828542]
[1752863802682,6.28848615,178.62,178.58,7.10828542]
[1752863802886,5.59848615,178.62,178.58,7.10828542]
[1752863803093,0.69,178.61,178.58,7.10828542]
[1752863805219,0.69,178.6,178.57,42.27829163]
[1752863806108,89.7,178.61,178.58,7.10828542]
[1752863806311,90.4,178.61,178.58,7.10828542]
[1752863808427,89.7,178.61,178.58,7.10828542]
[1752863808732,0.7,178.6,178.58,7.10828542]
[1752863808893,89.7,178.61,178.57,0.03]
[1752863808894,0.7,178.59,178.57,0.03]
[1752863809092,0.7,178.59,178.57,29.51]
[1752863809293,102.40711865,178.61,178.57,29.51]
[1752863809488,0.7,178.58,178.57,0.03]
[1752863809825,0.7,178.6,178.57,12.73830952]
[1752863810751,0.7,178.6,178.57,7.13828542]
[1752863810941,0.7,178.59,178.57,7.13828542]
[1752863811452,95.99882607,178.61,178.57,7.13828542]
[1752863811650,0.7,178.6,178.57,7.13828542]
[1752863811835,0.7,178.6,178.57,12.73824038]
[1752863812354,89.7,178.61,178.59,7.10828542]
[1752863812915,89.76,178.61,178.59,7.10828542]
[1752863813122,89.76,178.61,178.58,5.59968404]
[1752863813322,90.46,178.61,178.57,5.62994331]
[1752863813544,89.76,178.61,178.57,12.73822873]
[1752863813847,0.7,178.6,178.57,7.13828542]
[1752863814055,0.7,178.6,178.57,0.03]
[1752863814255,0.7,178.59,178.57,0.03]
[1752863815241,102.46708526,178.61,178.57,0.03]
[1752863815428,0.7,178.58,178.57,0.03]
[1752863815757,90.46,178.61,178.57,7.13828542]
[1752863815942,0.7,178.6,178.57,7.13828542]
[1752863816150,0.7,178.59,178.57,7.13828542]
[1752863817851,90.46,178.61,178.58,7.10828542]
[1752863818250,89.76,178.61,178.58,7.10828542]
[1752863818548,90.46,178.61,178.58,7.10828542]
[1752863819773,90.46,178.61,178.57,5.62999662]
[1752863820071,90.46,178.61,178.58,7.10828542]
[1752863821065,0.7,178.6,178.57,12.73828204]
[1752863821684,0.7,178.6,178.58,7.10828542]
[1752863822553,0.7,178.59,178.58,7.10828542]
[1752863823066,0.7,178.59,178.57,7.13828542]
[1752863823472,0.7,178.59,178.57,12.73829449]
[1752863823673,90.46,178.61,178.57,12.73829449]
[1752863823874,89.76,178.61,178.57,12.73829449]
[1752863824087,0.7,178.6,178.57,12.73829449]
[1752863824392,90.46,178.61,178.58,7.10828542]
[1752863825250,89.76,178.61,178.58,7.10828542]
[1752863825491,0.7,178.6,178.58,7.10828542]
[1752863825666,89.76,178.61,178.58,7.10828542]
[1752863825982,89.76,178.61,178.6,7.10828542]
[1752863826193,89.76,178.61,178.6,7.78828542]
[1752863826359,0.06,178.61,178.6,7.78828542]
[1752863827760,0.06,178.61,178.6,7.10828542]
[1752863828070,0.06,178.61,178.6,12.70738956]
[1752863828957,0.06,178.61,178.6,13.38738956]
[1752863831186,0.06,178.61,178.6,30.17207353]
[1752863834575,0.06,178.64,178.61,16.78468397]
[1752863834779,0.06,178.64,178.63,7.10828542]
[1752863835180,0.06,178.64,178.63,7.78828542]
[1752863836704,0.06,178.64,178.63,13.38644922]
[1752863836901,0.06,178.64,178.63,7.10828542]
[1752863837982,0.06,178.64,178.63,12.70644922]
[1752863839302,0.06,178.64,178.63,13.36644922]
[1752863840203,0.06,178.64,178.63,12.70644922]
[1752863841307,0.75,178.64,178.63,7.10828542]
[1752863841604,0.75,178.64,178.63,36.56828542]
[1752863842093,0.06,178.64,178.63,36.56828542]
[1752863842985,0.75,178.64,178.63,36.56828542]
[1752863843511,0.75,178.64,178.59,31.59936615]
[1752863843683,7.85828542,178.64,178.6,7.10828542]
[1752863843883,7.85828542,178.64,178.57,0.03]
[1752863843884,7.10828542,178.61,178.57,0.03]
[1752863844083,7.10828542,178.61,178.58,29.46]
[1752863844282,0.69,178.6,178.58,29.46]
[1752863844484,7.9119,178.64,178.59,7.10828542]
[1752863844485,0.69,178.63,178.59,7.10828542]
[1752863844700,7.9119,178.64,178.62,7.10828542]
[1752863844904,6.2743,178.64,178.62,7.10828542]
[1752863845185,0.69,178.63,178.61,7.10828542]
[1752863845405,0.69,178.63,178.57,5.62999604]
[1752863845608,0.69,178.63,178.59,7.10828542]
[1752863845792,0.69,178.63,178.6,29.44]
[1752863846593,0.69,178.62,178.6,29.44]
[1752863846809,0.69,178.62,178.6,36.54828542]
[1752863847302,0.69,178.61,178.6,29.44]
[1752863847495,0.69,178.61,178.6,36.54828542]
[1752863847696,0.69,178.63,178.6,36.54828542]
[1752863848442,6.2743,178.64,178.61,7.10828542]
[1752863848808,6.9643,178.64,178.61,7.10828542]
[1752863849131,0.69,178.63,178.61,7.10828542]
[1752863850056,6.2743,178.64,178.62,7.10828542]
[1752863850337,6.9643,178.64,178.62,7.10828542]
[1752863851034,0.69,178.63,178.62,7.10828542]
[1752863851817,6.2743,178.64,178.62,7.10828542]
[1752863852046,0.06,178.64,178.63,7.10828542]
[1752863853625,0.06,178.64,178.63,7.76828542]
[1752863853831,0.06,178.64,178.63,13.36644922]
[1752863854537,0.06,178.64,178.63,30.15113319]
[1752863857537,0.2,178.67,178.66,42.78468397]
[1752863857737,0.06,178.71,178.68,16.78468397]
[1752863858040,0.06,178.71,178.68,53.33296939]
[1752863858336,0.06,178.71,178.68,54.55262911]
[1752863859647,0.06,178.71,178.68,60.14922637]
[1752863859843,0.06,178.71,178.68,30.70922637]
[1752863860035,0.06,178.71,178.68,36.54828542]
[1752863860239,7.30828542,178.69,178.66,26.0]
[1752863860425,7.10828542,178.67,178.62,12.70666374]
[1752863860628,7.10828542,178.65,178.63,29.44]
[1752863860824,7.10828542,178.65,178.61,5.62875512]
[1752863860825,7.79828542,178.64,178.61,0.03]
[1752863861124,7.10828542,178.63,178.61,29.47]
[1752863861325,0.69,178.62,178.61,29.47]
[1752863861741,7.79828542,178.62,178.61,29.47]
[1752863861956,0.69,178.62,178.61,29.47]
[1752863862117,0.69,178.62,178.61,0.03]
[1752863864274,7.79828542,178.62,178.61,0.03]
[1752863867255,0.69,178.62,178.61,0.03]
[1752863867452,13.39676263,178.62,178.61,0.03]
[1752863870147,6.28847721,178.62,178.61,0.03]
[1752863870348,13.39676263,178.62,178.61,0.03]
[1752863870769,0.69,178.62,178.61,0.03]
[1752863872992,13.39676263,178.62,178.61,0.03]
[1752863874408,6.28847721,178.62,178.61,0.03]
[1752863874996,13.39676263,178.62,178.61,0.03]
[1752863875200,89.7,178.63,178.61,0.03]
[1752863875795,90.42,178.63,178.61,0.03]
[1752863877005,89.7,178.63,178.61,7.13828542]
[1752863878912,90.42,178.63,178.61,0.03]
[1752863879115,90.42,178.63,178.61,7.13828542]
[1752863879302,90.42,178.63,178.61,0.03]
[1752863879715,0.72,178.63,178.61,0.03]
[1752863880085,0.72,178.63,178.61,7.13828542]
[1752863880514,6.31756486,178.65,178.61,7.13828542]
[1752863880818,0.72,178.64,178.61,7.13828542]
[1752863881029,5.59756486,178.65,178.61,7.13828542]
[1752863881199,0.72,178.63,178.61,7.13828542]
[1752863881715,5.59792653,178.64,178.61,7.13828542]
[1752863881882,0.72,178.62,178.61,7.13828542]
[1752863882283,0.72,178.64,178.61,7.13828542]
[1752863883493,90.42,178.66,178.62,7.10828542]
[1752863884015,96.01724336,178.66,178.62,7.10828542]
[1752863884207,89.7,178.66,178.65,7.10828542]
[1752863884410,0.06,178.68,178.65,7.10828542]
[1752863884596,0.06,178.68,178.67,7.10828542]
[1752863884919,0.78,178.68,178.62,16.78468397]
[1752863885128,0.78,178.68,178.66,7.10828542]
[1752863885615,0.78,178.68,178.67,7.10828542]
[1752863885616,0.06,178.68,178.67,7.10828542]
[1752863885824,0.06,178.68,178.66,7.10828542]
[1752863886124,0.72,178.67,178.66,7.10828542]
[1752863887402,0.06,178.68,178.66,7.10828542]
[1752863887723,0.06,178.68,178.67,7.10828542]
[1752863887934,0.78,178.68,178.67,7.10828542]
[1752863889430,0.78,178.68,178.61,29.45]
[1752863889431,6.37659726,178.68,178.62,5.59825543]
[1752863889618,6.37659726,178.68,178.64,7.10828542]
[1752863889619,0.72,178.67,178.64,7.10828542]
[1752863891104,0.72,178.67,178.61,0.03]
[1752863891105,7.10828542,178.65,178.61,0.03]
[1752863891423,0.72,178.64,178.61,7.13828542]
[1752863891811,0.72,178.63,178.61,0.03]
[1752863891999,7.10828542,178.62,178.61,0.03]
[1752863892631,7.82828542,178.62,178.61,0.03]
[1752863893228,0.72,178.62,178.61,0.03]
[1752863893635,13.42676263,178.62,178.61,0.03]
[1752863897532,0.72,178.62,178.61,0.03]
[1752863898132,13.42676263,178.62,178.61,0.03]
[1752863899551,0.72,178.62,178.61,0.03]
[1752863900050,5.59822387,178.63,178.61,0.03]
[1752863900625,6.25822387,178.63,178.61,0.03]
[1752863902960,0.66,178.62,178.61,0.03]
[1752863903643,7.76828542,178.62,178.61,0.03]
[1752863904151,13.36676263,178.62,178.61,0.03]
[1752863909857,42.74676263,178.62,178.61,0.03]
[1752863910059,59.5314466,178.62,178.61,0.03]
[1752863910239,7.10828542,178.58,178.57,0.03]
[1752863910655,37.14828542,178.58,178.57,0.03]
[1752863911336,0.66,178.58,178.57,0.03]
[1752863911558,26.0,178.58,178.57,0.03]
[1752863911761,26.66,178.58,178.57,0.03]
[1752863912055,33.76828542,178.58,178.57,0.03]
[1752863912262,39.36801663,178.58,178.57,0.03]
[1752863912462,32.25973121,178.58,178.57,0.03]
[1752863912649,39.36801663,178.58,178.57,0.03]
[1752863913782,40.92021663,178.58,178.57,1e-08]
[1752863913936,73.92870585,178.58,178.57,1e-08]
[1752863915148,76.8532628,178.58,178.57,1e-08]
[1752863916752,26.0,178.54,178.53,0.03]
[1752863916954,79.27296939,178.54,178.52,0.03]
[1752863917252,24.55296939,178.53,178.52,0.03]
[1752863917458,26.0,178.51,178.49,0.03]
[1752863917660,62.48828542,178.51,178.49,0.03]
[1752863917851,69.65178542,178.51,178.49,0.03]
[1752863918049,97.46828542,178.5,178.49,0.03]
[1752863918868,103.07052631,178.5,178.49,0.03]
[1752863920248,119.85521028,178.5,178.49,0.03]
[1752863923994,119.85521028,178.5,178.49,1e-08]
[1752863924375,106.48468396,178.47,178.46,0.03]
[1752863924683,60.38125481,178.47,178.46,1e-08]
[1752863924879,61.04125481,178.47,178.46,1e-08]
[1752863925058,66.64443741,178.47,178.46,1e-08]
[1752863925265,23.04786657,178.47,178.46,1e-08]
[1752863925564,66.64443741,178.47,178.46,1e-08]
[1752863925892,52.42786657,178.47,178.46,1e-08]
[1752863926075,66.64443741,178.47,178.46,1e-08]
[1752863926686,76.97901583,178.47,178.46,1e-08]
[1752863927089,53.08604644,178.47,178.46,1e-08]
[1752863927684,79.08604644,178.47,178.46,1e-08]
[1752863930201,10.33457842,178.47,178.46,1e-08]
[1752863930706,10.33457842,178.47,178.46,0.71000001]
[1752863931012,10.33457842,178.47,178.46,7.81828543]
[1752863931215,10.33457842,178.47,178.46,13.42178201]
[1752863933105,10.33457842,178.47,178.46,7.81828543]
[1752863933814,10.33457842,178.47,178.46,1e-08]
[1752863934312,15.93776102,178.47,178.46,1e-08]
[1752863934696,23.04604644,178.47,178.46,1e-08]
[1752863935090,15.93776102,178.47,178.46,1e-08]
[1752863935811,10.33457842,178.47,178.46,0.71000001]
[1752863936311,10.33457842,178.47,178.46,1e-08]
[1752863936498,15.93776102,178.47,178.46,1e-08]
[1752863937214,23.69604644,178.47,178.46,1e-08]
[1752863937582,53.05604644,178.47,178.46,1e-08]
[1752863937782,60.16433186,178.47,178.46,1e-08]
[1752863938743,78.45341583,178.47,178.46,1e-08]
[1752863939026,78.45341583,178.47,178.44,0.03]
[1752863939027,42.78468397,178.45,178.44,0.03]
[1752863939201,79.25296939,178.45,178.44,0.03]
[1752863939733,79.90296939,178.45,178.44,0.03]
[1752863940036,85.50677998,178.45,178.44,0.03]
[1752863940355,39.36209601,178.45,178.44,0.03]
[1752863940646,9.69751055,178.46,178.44,0.03]
[1752863940803,9.69751055,178.46,178.44,0.74]
[1752863941004,99.39751055,178.46,178.45,7.81828542]
[1752863941441,9.69751055,178.46,178.45,7.81828542]
[1752863942033,9.69751055,178.46,178.45,13.42209601]
[1752863942837,0.06,178.51,178.46,16.78468397]
[1752863943131,0.06,178.51,178.46,17.49468397]
[1752863943315,0.06,178.51,178.5,11.59918231]
[1752863943832,0.06,178.51,178.5,12.30918231]
[1752863944627,0.06,178.51,178.49,11.59918231]
[1752863945033,0.06,178.51,178.49,12.30918231]
[1752863945918,0.06,178.51,178.5,11.59918231]
[1752863946443,0.06,178.51,178.5,12.30918231]
[1752863946816,0.06,178.51,178.5,11.59918231]
[1752863947015,0.06,178.51,178.49,11.59918231]